[Event "Titled Tuesday Blitz February 14 Early 2023"]
[White "Boros, Denes"]
[Black "Petukhov, Dmitry"]
[WhiteFideId "722340"]
[BlackFideId "4142748"]
[WhiteElo "2406"]
[BlackElo "2350"]
[Result "1/2-1/2"]
[Round "06"]
[TimeControl "180+2"]
[Date "2023.02.15"]
[WhiteClock "0:00:35"]
[BlackClock "0:00:25"]

1. d4 {[%clk 0:03:00]}  Nf6 {[%clk 0:02:59]} 2. Nc3 {[%clk 0:03:01]}  d5 {[%clk 0:02:58]} 3. Bg5 {[%clk 0:03:01]}  Ne4 {[%clk 0:02:58]} 4. Nxe4 {[%clk 0:02:58]}  dxe4 {[%clk 0:02:59]} 5. Qd2 {[%clk 0:02:58]}  h6 {[%clk 0:02:52]} 6. Bf4 {[%clk 0:02:57]}  Nc6 {[%clk 0:02:42]} 7. d5 {[%clk 0:02:50]}  e5 {[%clk 0:02:39]} 8. Bg3 {[%clk 0:02:50]}  Ne7 {[%clk 0:02:34]} 9. Bxe5 {[%clk 0:02:36]}  Nxd5 {[%clk 0:02:29]} 10. O-O-O {[%clk 0:02:31]}  c6 {[%clk 0:02:25]} 11. c4 {[%clk 0:02:25]}  Qe7 {[%clk 0:02:02]} 12. cxd5 {[%clk 0:02:09]}  Qxe5 {[%clk 0:02:01]} 13. dxc6 {[%clk 0:02:09]}  Be6 {[%clk 0:00:57]} 14. e3 {[%clk 0:01:55]}  bxc6 {[%clk 0:00:52]} 15. Qc2 {[%clk 0:01:51]}  Rc8 {[%clk 0:00:36]} 16. Bc4 {[%clk 0:01:49]}  Be7 {[%clk 0:00:35]} 17. f4 {[%clk 0:01:36]}  exf3 {[%clk 0:00:32]} 18. Nxf3 {[%clk 0:01:36]}  Qxe3+ {[%clk 0:00:32]} 19. Kb1 {[%clk 0:01:37]}  Bxc4 {[%clk 0:00:28]} 20. Qxc4 {[%clk 0:01:33]}  O-O {[%clk 0:00:28]} 21. Rhe1 {[%clk 0:01:21]}  Qc5 {[%clk 0:00:27]} 22. Qxc5 {[%clk 0:01:18]}  Bxc5 {[%clk 0:00:28]} 23. Ne5 {[%clk 0:01:19]}  Rfe8 {[%clk 0:00:26]} 24. Nc4 {[%clk 0:01:10]}  Bf8 {[%clk 0:00:22]} 25. Kc2 {[%clk 0:01:09]}  g6 {[%clk 0:00:21]} 26. a3 {[%clk 0:01:07]}  Rcd8 {[%clk 0:00:20]} 27. b4 {[%clk 0:01:05]}  Rxd1 {[%clk 0:00:19]} 28. Rxe8 {[%clk 0:01:05]}  Rg1 {[%clk 0:00:15]} 29. Re2 {[%clk 0:01:04]}  Kg7 {[%clk 0:00:13]} 30. Na5 {[%clk 0:01:00]}  c5 {[%clk 0:00:14]} 31. b5 {[%clk 0:01:01]}  c4 {[%clk 0:00:11]} 32. Nxc4 {[%clk 0:00:57]}  Ra1 {[%clk 0:00:11]} 33. Kb2 {[%clk 0:00:53]}  Rg1 {[%clk 0:00:10]} 34. a4 {[%clk 0:00:52]}  Bc5 {[%clk 0:00:11]} 35. a5 {[%clk 0:00:52]}  Bd4+ {[%clk 0:00:10]} 36. Kc2 {[%clk 0:00:51]}  Ra1 {[%clk 0:00:10]} 37. Kd3 {[%clk 0:00:52]}  Bf6 {[%clk 0:00:10]} 38. Ke4 {[%clk 0:00:49]}  Rd1 {[%clk 0:00:09]} 39. Rc2 {[%clk 0:00:49]}  Rd4+ {[%clk 0:00:08]} 40. Ke3 {[%clk 0:00:48]}  Rd5 {[%clk 0:00:09]} 41. b6 {[%clk 0:00:47]}  axb6 {[%clk 0:00:08]} 42. axb6 {[%clk 0:00:48]}  Rb5 {[%clk 0:00:07]} 43. Rf2 {[%clk 0:00:42]}  Bd8 {[%clk 0:00:07]} 44. Rxf7+ {[%clk 0:00:41]}  Kxf7 {[%clk 0:00:07]} 45. Nd6+ {[%clk 0:00:42]}  Kg7 {[%clk 0:00:07]} 46. Nxb5 {[%clk 0:00:42]}  Bxb6+ {[%clk 0:00:08]} 47. Ke4 {[%clk 0:00:43]}  Bd8 {[%clk 0:00:09]} 48. Nd6 {[%clk 0:00:41]}  Bf6 {[%clk 0:00:10]} 49. Kd5 {[%clk 0:00:40]}  Bg5 {[%clk 0:00:09]} 50. Ke6 {[%clk 0:00:41]}  Bd2 {[%clk 0:00:09]} 51. Ne8+ {[%clk 0:00:40]}  Kh7 {[%clk 0:00:10]} 52. Kf7 {[%clk 0:00:39]}  Bc3 {[%clk 0:00:10]} 53. Nc7 {[%clk 0:00:29]}  h5 {[%clk 0:00:11]} 54. Ne6 {[%clk 0:00:29]}  Kh6 {[%clk 0:00:10]} 55. Nc5 {[%clk 0:00:21]}  g5 {[%clk 0:00:09]} 56. Ne4 {[%clk 0:00:19]}  Be5 {[%clk 0:00:08]} 57. h3 {[%clk 0:00:20]}  g4 {[%clk 0:00:09]} 58. Ke6 {[%clk 0:00:19]}  gxh3 {[%clk 0:00:08]} 59. gxh3 {[%clk 0:00:20]}  Bb8 {[%clk 0:00:08]} 60. Kf5 {[%clk 0:00:20]}  h4 {[%clk 0:00:08]} 61. Nf6 {[%clk 0:00:20]}  Bg3 {[%clk 0:00:08]} 62. Kg4 {[%clk 0:00:19]}  Kg7 {[%clk 0:00:08]} 63. Kf5 {[%clk 0:00:19]}  Kf7 {[%clk 0:00:08]} 64. Ne4 {[%clk 0:00:19]}  Kg7 {[%clk 0:00:09]} 65. Ng5 {[%clk 0:00:19]}  Kh6 {[%clk 0:00:09]} 66. Kg4 {[%clk 0:00:20]}  Kg7 {[%clk 0:00:09]} 67. Ne6+ {[%clk 0:00:20]}  Kh6 {[%clk 0:00:09]} 68. Nd4 {[%clk 0:00:21]}  Kg7 {[%clk 0:00:10]} 69. Nf5+ {[%clk 0:00:22]}  Kh7 {[%clk 0:00:10]} 70. Kg5 {[%clk 0:00:22]}  Bf2 {[%clk 0:00:10]} 71. Kf6 {[%clk 0:00:22]}  Bg3 {[%clk 0:00:11]} 72. Kf7 {[%clk 0:00:23]}  Kh8 {[%clk 0:00:10]} 73. Ne7 {[%clk 0:00:22]}  Kh7 {[%clk 0:00:11]} 74. Nd5 {[%clk 0:00:22]}  Kh6 {[%clk 0:00:11]} 75. Kf6 {[%clk 0:00:22]}  Kh5 {[%clk 0:00:12]} 76. Kf5 {[%clk 0:00:22]}  Kh6 {[%clk 0:00:13]} 77. Ne3 {[%clk 0:00:22]}  Kh7 {[%clk 0:00:14]} 78. Kg5 {[%clk 0:00:23]}  Kg7 {[%clk 0:00:14]} 79. Nf5+ {[%clk 0:00:23]}  Kh8 {[%clk 0:00:14]} 80. Nxh4 {[%clk 0:00:24]}  Bxh4+ {[%clk 0:00:14]} 81. Kxh4 {[%clk 0:00:24]}  Kh7 {[%clk 0:00:15]} 82. Kg5 {[%clk 0:00:24]}  Kg7 {[%clk 0:00:16]} 83. Kf5 {[%clk 0:00:24]}  Kh7 {[%clk 0:00:17]} 84. Ke5 {[%clk 0:00:25]}  Kh8 {[%clk 0:00:18]} 85. Kf5 {[%clk 0:00:26]}  Kg8 {[%clk 0:00:18]} 86. Kf6 {[%clk 0:00:27]}  Kh8 {[%clk 0:00:19]} 87. Kg6 {[%clk 0:00:27]}  Kg8 {[%clk 0:00:20]} 88. Kh5 {[%clk 0:00:28]}  Kh8 {[%clk 0:00:21]} 89. Kg4 {[%clk 0:00:29]}  Kg8 {[%clk 0:00:21]} 90. Kg3 {[%clk 0:00:30]}  Kh8 {[%clk 0:00:22]} 91. Kg2 {[%clk 0:00:31]}  Kg8 {[%clk 0:00:23]} 92. Kg1 {[%clk 0:00:32]}  Kh8 {[%clk 0:00:24]} 93. Kh1 {[%clk 0:00:32]}  Kg8 {[%clk 0:00:24]} 94. Kg1 {[%clk 0:00:33]}  Kh8 {[%clk 0:00:24]} 95. Kh1 {[%clk 0:00:34]}  Kg8 {[%clk 0:00:25]} 96. Kg1 {[%clk 0:00:35]} 1/2-1/2


[Site "https://www.chess.com"]

[Event "Titled Tuesday Blitz February 14 Early 2023"]
[White "Pranav, V"]
[Black "Srihari L R"]
[WhiteFideId "25060783"]
[BlackFideId "46617116"]
[WhiteElo "2597"]
[BlackElo "2416"]
[Result "1-0"]
[Round "06"]
[TimeControl "180+2"]
[Date "2023.02.15"]
[WhiteClock "0:00:47"]
[BlackClock "0:00:04"]

1. e4 {[%clk 0:03:00]}  d6 {[%clk 0:02:55]} 2. d4 {[%clk 0:03:00]}  Nf6 {[%clk 0:02:56]} 3. Nc3 {[%clk 0:03:00]}  e5 {[%clk 0:02:56]} 4. Nf3 {[%clk 0:03:00]}  exd4 {[%clk 0:02:56]} 5. Nxd4 {[%clk 0:03:00]}  Be7 {[%clk 0:02:57]} 6. g3 {[%clk 0:03:00]}  O-O {[%clk 0:02:54]} 7. Bg2 {[%clk 0:03:00]}  Re8 {[%clk 0:02:54]} 8. O-O {[%clk 0:03:00]}  c6 {[%clk 0:02:54]} 9. Re1 {[%clk 0:03:01]}  Na6 {[%clk 0:02:52]} 10. h3 {[%clk 0:03:00]}  Nc5 {[%clk 0:02:50]} 11. Bf4 {[%clk 0:02:59]}  a5 {[%clk 0:02:49]} 12. Qd2 {[%clk 0:02:59]}  Bf8 {[%clk 0:02:38]} 13. Rad1 {[%clk 0:02:58]}  Qb6 {[%clk 0:02:37]} 14. Nb3 {[%clk 0:02:55]}  a4 {[%clk 0:02:34]} 15. Nxc5 {[%clk 0:02:55]}  dxc5 {[%clk 0:02:30]} 16. e5 {[%clk 0:02:49]}  Nh5 {[%clk 0:02:25]} 17. Bg5 {[%clk 0:02:46]}  h6 {[%clk 0:02:15]} 18. Bh4 {[%clk 0:02:26]}  g5 {[%clk 0:02:13]} 19. Bxg5 {[%clk 0:02:26]}  hxg5 {[%clk 0:02:14]} 20. Qxg5+ {[%clk 0:02:27]}  Ng7 {[%clk 0:02:14]} 21. Ne4 {[%clk 0:02:27]}  Re6 {[%clk 0:00:54]} 22. Nf6+ {[%clk 0:02:25]}  Rxf6 {[%clk 0:00:53]} 23. exf6 {[%clk 0:02:25]}  Be6 {[%clk 0:00:49]} 24. Be4 {[%clk 0:02:18]}  Qxb2 {[%clk 0:00:40]} 25. h4 {[%clk 0:02:13]}  c4 {[%clk 0:00:25]} 26. h5 {[%clk 0:02:12]}  Qb5 {[%clk 0:00:25]} 27. Qxb5 {[%clk 0:02:01]}  cxb5 {[%clk 0:00:26]} 28. fxg7 {[%clk 0:02:01]}  Kxg7 {[%clk 0:00:25]} 29. Bxb7 {[%clk 0:02:01]}  Rb8 {[%clk 0:00:25]} 30. Bd5 {[%clk 0:02:01]}  Bg4 {[%clk 0:00:21]} 31. Rb1 {[%clk 0:01:58]}  Bxh5 {[%clk 0:00:18]} 32. Bxc4 {[%clk 0:01:57]}  b4 {[%clk 0:00:18]} 33. Bd3 {[%clk 0:01:53]}  Rc8 {[%clk 0:00:17]} 34. Kg2 {[%clk 0:01:53]}  Rc6 {[%clk 0:00:15]} 35. Re4 {[%clk 0:01:31]}  Rf6 {[%clk 0:00:12]} 36. Rh4 {[%clk 0:01:29]}  Bf3+ {[%clk 0:00:12]} 37. Kg1 {[%clk 0:01:30]}  Re6 {[%clk 0:00:04]} 38. Rf4 {[%clk 0:01:27]}  Bh5 {[%clk 0:00:02]} 39. Kg2 {[%clk 0:01:25]}  a3 {[%clk 0:00:01]} 40. Rh1 {[%clk 0:01:20]}  Bg6 {[%clk 0:00:01]} 41. Bxg6 {[%clk 0:01:20]}  fxg6 {[%clk 0:00:02]} 42. Rc4 {[%clk 0:00:58]}  Re2 {[%clk 0:00:03]} 43. Kf3 {[%clk 0:00:55]}  Rd2 {[%clk 0:00:02]} 44. Rb1 {[%clk 0:00:54]}  Kf6 {[%clk 0:00:01]} 45. Rb3 {[%clk 0:00:54]}  Rd5 {[%clk 0:00:01]} 46. Rd3 {[%clk 0:00:53]}  Re5 {[%clk 0:00:01]} 47. Rf4+ {[%clk 0:00:48]}  Kg7 {[%clk 0:00:02]} 48. Rd7+ {[%clk 0:00:49]}  Kg8 {[%clk 0:00:02]} 49. Rd8 {[%clk 0:00:49]}  Rf5 {[%clk 0:00:03]} 50. Rxf5 {[%clk 0:00:49]}  gxf5 {[%clk 0:00:03]} 51. Kf4 {[%clk 0:00:49]}  Kf7 {[%clk 0:00:04]} 52. Kxf5 {[%clk 0:00:47]}  Bc5 {[%clk 0:00:04]} 53. f3 {[%clk 0:00:47]}  Bf2 {[%clk 0:00:04]} 54. g4 {[%clk 0:00:47]} 1-0


[Site "https://www.chess.com"]

[Event "Titled Tuesday Blitz February 14 Early 2023"]
[White "Paichadze, Luka"]
[Black "Martinez Ramirez, Lennis"]
[WhiteFideId "13602934"]
[BlackFideId "3509079"]
[WhiteElo "2515"]
[BlackElo "2426"]
[Result "1-0"]
[Round "06"]
[TimeControl "180+2"]
[Date "2023.02.15"]
[WhiteClock "0:00:39"]
[BlackClock "0:00:06"]

1. e4 {[%clk 0:03:00]}  e5 {[%clk 0:02:59]} 2. d4 {[%clk 0:02:59]}  exd4 {[%clk 0:02:51]} 3. Qxd4 {[%clk 0:03:00]}  Nc6 {[%clk 0:02:50]} 4. Qe3 {[%clk 0:03:00]}  Nf6 {[%clk 0:02:50]} 5. Nc3 {[%clk 0:02:58]}  Bb4 {[%clk 0:02:49]} 6. Bd2 {[%clk 0:02:58]}  O-O {[%clk 0:02:49]} 7. O-O-O {[%clk 0:02:57]}  Re8 {[%clk 0:02:50]} 8. Bc4 {[%clk 0:02:53]}  d6 {[%clk 0:02:50]} 9. f3 {[%clk 0:02:53]}  Be6 {[%clk 0:02:50]} 10. Bxe6 {[%clk 0:02:52]}  Rxe6 {[%clk 0:02:51]} 11. Qf2 {[%clk 0:02:51]}  Ne5 {[%clk 0:02:41]} 12. Nge2 {[%clk 0:02:48]}  Nc4 {[%clk 0:02:27]} 13. Nf4 {[%clk 0:02:47]}  Re5 {[%clk 0:02:24]} 14. Nd3 {[%clk 0:02:44]}  Bc5 {[%clk 0:02:04]} 15. Qe2 {[%clk 0:02:17]}  a6 {[%clk 0:01:04]} 16. Nxe5 {[%clk 0:02:15]}  Nxe5 {[%clk 0:01:05]} 17. Bg5 {[%clk 0:02:10]}  h6 {[%clk 0:01:04]} 18. Bh4 {[%clk 0:02:09]}  Ng6 {[%clk 0:01:04]} 19. Bg3 {[%clk 0:02:08]}  Qe8 {[%clk 0:01:00]} 20. Nd5 {[%clk 0:01:53]}  Nxd5 {[%clk 0:01:00]} 21. Rxd5 {[%clk 0:01:54]}  b5 {[%clk 0:00:59]} 22. Rhd1 {[%clk 0:01:44]}  Qc6 {[%clk 0:00:59]} 23. Kb1 {[%clk 0:01:40]}  a5 {[%clk 0:00:57]} 24. f4 {[%clk 0:01:27]}  a4 {[%clk 0:00:51]} 25. f5 {[%clk 0:01:25]}  Ne7 {[%clk 0:00:51]} 26. R5d3 {[%clk 0:01:25]}  a3 {[%clk 0:00:51]} 27. b3 {[%clk 0:01:21]}  Re8 {[%clk 0:00:51]} 28. Qg4 {[%clk 0:01:19]}  Bd4 {[%clk 0:00:43]} 29. Bf4 {[%clk 0:01:14]}  Bf6 {[%clk 0:00:29]} 30. Bxh6 {[%clk 0:01:12]}  Nc8 {[%clk 0:00:28]} 31. Bxg7 {[%clk 0:00:58]}  Rxe4 {[%clk 0:00:18]} 32. Qg3 {[%clk 0:00:58]}  Bxg7 {[%clk 0:00:13]} 33. f6 {[%clk 0:00:57]}  Kf8 {[%clk 0:00:04]} 34. Qxg7+ {[%clk 0:00:52]}  Ke8 {[%clk 0:00:05]} 35. Qg8+ {[%clk 0:00:52]}  Kd7 {[%clk 0:00:05]} 36. Qxf7+ {[%clk 0:00:51]}  Kd8 {[%clk 0:00:06]} 37. Qd5 {[%clk 0:00:39]} 1-0


[Site "https://www.chess.com"]

[Event "Titled Tuesday Blitz February 14 Early 2023"]
[White "Remizov, Yaroslav"]
[Black "Korchmar, Vasiliy"]
[WhiteFideId "34134015"]
[BlackFideId "24131750"]
[WhiteElo "2421"]
[BlackElo "2438"]
[Result "1-0"]
[Round "06"]
[TimeControl "180+2"]
[Date "2023.02.15"]
[WhiteClock "0:00:13"]
[BlackClock "0:00:01"]

1. Nf3 {[%clk 0:03:00]}  d5 {[%clk 0:02:59]} 2. c4 {[%clk 0:03:00]}  d4 {[%clk 0:02:59]} 3. b4 {[%clk 0:02:59]}  Bg4 {[%clk 0:02:58]} 4. Qb3 {[%clk 0:02:57]}  Nf6 {[%clk 0:02:57]} 5. Bb2 {[%clk 0:02:55]}  Bxf3 {[%clk 0:02:56]} 6. gxf3 {[%clk 0:02:49]}  e5 {[%clk 0:02:54]} 7. Rg1 {[%clk 0:02:30]}  a5 {[%clk 0:02:49]} 8. bxa5 {[%clk 0:02:27]}  Nbd7 {[%clk 0:02:45]} 9. Ba3 {[%clk 0:02:14]}  Bxa3 {[%clk 0:02:22]} 10. Qxa3 {[%clk 0:02:08]}  g6 {[%clk 0:02:20]} 11. d3 {[%clk 0:01:53]}  c5 {[%clk 0:02:18]} 12. Bh3 {[%clk 0:01:49]}  O-O {[%clk 0:02:14]} 13. Nd2 {[%clk 0:01:44]}  Rxa5 {[%clk 0:02:12]} 14. Qb2 {[%clk 0:01:43]}  Qc7 {[%clk 0:01:59]} 15. Bxd7 {[%clk 0:01:32]}  Nxd7 {[%clk 0:01:49]} 16. Kf1 {[%clk 0:01:31]}  Nb6 {[%clk 0:01:31]} 17. Rb1 {[%clk 0:01:21]}  Ra6 {[%clk 0:01:31]} 18. Kg2 {[%clk 0:01:19]}  Rfa8 {[%clk 0:01:31]} 19. Rgd1 {[%clk 0:00:49]}  R8a7 {[%clk 0:01:31]} 20. Qb5 {[%clk 0:00:46]}  Na4 {[%clk 0:01:23]} 21. Ne4 {[%clk 0:00:43]}  f5 {[%clk 0:01:09]} 22. Qe8+ {[%clk 0:00:43]}  Kg7 {[%clk 0:01:10]} 23. Ng5 {[%clk 0:00:43]}  Nc3 {[%clk 0:00:46]} 24. Re1 {[%clk 0:00:20]}  h6 {[%clk 0:00:21]} 25. Ne6+ {[%clk 0:00:20]}  Rxe6 {[%clk 0:00:22]} 26. Qxe6 {[%clk 0:00:21]}  Nxb1 {[%clk 0:00:23]} 27. Rxb1 {[%clk 0:00:22]}  Rxa2 {[%clk 0:00:23]} 28. Rb6 {[%clk 0:00:22]}  Ra6 {[%clk 0:00:10]} 29. Qxg6+ {[%clk 0:00:17]}  Kh8 {[%clk 0:00:06]} 30. Qxh6+ {[%clk 0:00:16]}  Kg8 {[%clk 0:00:07]} 31. Qe6+ {[%clk 0:00:14]}  Kh8 {[%clk 0:00:05]} 32. Qf6+ {[%clk 0:00:12]}  Kg8 {[%clk 0:00:02]} 33. Rxa6 {[%clk 0:00:12]}  bxa6 {[%clk 0:00:02]} 34. Qxa6 {[%clk 0:00:13]}  Qg7+ {[%clk 0:00:02]} 35. Kf1 {[%clk 0:00:14]}  Qh6 {[%clk 0:00:01]} 36. Qxh6 {[%clk 0:00:13]} 1-0


[Site "https://www.chess.com"]

[Event "Titled Tuesday Blitz February 14 Early 2023"]
[White "Bilych, Olexiy"]
[Black "Parkhov, Yair"]
[WhiteFideId "14156504"]
[BlackFideId "2813408"]
[WhiteElo "2441"]
[BlackElo "2505"]
[Result "0-1"]
[Round "06"]
[TimeControl "180+2"]
[Date "2023.02.15"]
[WhiteClock "0:00:09"]
[BlackClock "0:00:13"]

1. d4 {[%clk 0:02:37]}  d5 {[%clk 0:03:00]} 2. c4 {[%clk 0:02:37]}  e6 {[%clk 0:03:00]} 3. Nf3 {[%clk 0:02:36]}  Nf6 {[%clk 0:02:58]} 4. Nc3 {[%clk 0:02:35]}  Nbd7 {[%clk 0:02:56]} 5. cxd5 {[%clk 0:02:34]}  exd5 {[%clk 0:02:56]} 6. Bg5 {[%clk 0:02:34]}  c6 {[%clk 0:02:56]} 7. e3 {[%clk 0:02:34]}  Be7 {[%clk 0:02:53]} 8. Bd3 {[%clk 0:02:34]}  Nf8 {[%clk 0:02:42]} 9. O-O {[%clk 0:02:34]}  Ne6 {[%clk 0:02:42]} 10. Bh4 {[%clk 0:02:33]}  O-O {[%clk 0:02:42]} 11. Qc2 {[%clk 0:02:33]}  g6 {[%clk 0:02:41]} 12. Rab1 {[%clk 0:02:14]}  a5 {[%clk 0:02:41]} 13. Rfd1 {[%clk 0:02:05]}  Ng7 {[%clk 0:02:39]} 14. Bxf6 {[%clk 0:02:05]}  Bxf6 {[%clk 0:02:38]} 15. e4 {[%clk 0:02:06]}  dxe4 {[%clk 0:02:37]} 16. Nxe4 {[%clk 0:02:05]}  Bf5 {[%clk 0:02:35]} 17. Ne5 {[%clk 0:02:01]}  Bxe4 {[%clk 0:02:19]} 18. Bxe4 {[%clk 0:02:02]}  Re8 {[%clk 0:02:15]} 19. Qb3 {[%clk 0:01:45]}  Qe7 {[%clk 0:02:09]} 20. Bd3 {[%clk 0:01:22]}  Rad8 {[%clk 0:02:00]} 21. Bc4 {[%clk 0:01:21]}  Bxe5 {[%clk 0:01:59]} 22. dxe5 {[%clk 0:01:21]}  b5 {[%clk 0:01:55]} 23. Rxd8 {[%clk 0:01:05]}  Rxd8 {[%clk 0:01:54]} 24. Bf1 {[%clk 0:01:05]}  Qxe5 {[%clk 0:01:53]} 25. Rc1 {[%clk 0:01:05]}  Rd6 {[%clk 0:01:47]} 26. a4 {[%clk 0:01:03]}  b4 {[%clk 0:01:45]} 27. Qc2 {[%clk 0:00:53]}  Ne6 {[%clk 0:01:44]} 28. b3 {[%clk 0:00:52]}  c5 {[%clk 0:01:33]} 29. Bc4 {[%clk 0:00:51]}  Nd4 {[%clk 0:01:33]} 30. Qd3 {[%clk 0:00:43]}  Kg7 {[%clk 0:01:23]} 31. h3 {[%clk 0:00:38]}  h5 {[%clk 0:01:20]} 32. Rf1 {[%clk 0:00:23]}  Rf6 {[%clk 0:01:17]} 33. Qb1 {[%clk 0:00:21]}  Qg5 {[%clk 0:01:01]} 34. Qd1 {[%clk 0:00:21]}  h4 {[%clk 0:00:37]} 35. Kh1 {[%clk 0:00:20]}  Qf4 {[%clk 0:00:36]} 36. Qd3 {[%clk 0:00:19]}  Rf5 {[%clk 0:00:35]} 37. Kg1 {[%clk 0:00:16]}  Rg5 {[%clk 0:00:35]} 38. Kh1 {[%clk 0:00:16]}  Re5 {[%clk 0:00:27]} 39. Kg1 {[%clk 0:00:15]}  g5 {[%clk 0:00:24]} 40. Kh1 {[%clk 0:00:14]}  g4 {[%clk 0:00:23]} 41. hxg4 {[%clk 0:00:15]}  Qxg4 {[%clk 0:00:23]} 42. Kh2 {[%clk 0:00:14]}  Qf4+ {[%clk 0:00:23]} 43. Kh1 {[%clk 0:00:14]}  Rg5 {[%clk 0:00:22]} 44. Qh3 {[%clk 0:00:15]}  Nf5 {[%clk 0:00:22]} 45. Kg1 {[%clk 0:00:12]}  Nd4 {[%clk 0:00:21]} 46. Kh1 {[%clk 0:00:13]}  f5 {[%clk 0:00:20]} 47. Kg1 {[%clk 0:00:11]}  Nf3+ {[%clk 0:00:18]} 48. Kh1 {[%clk 0:00:12]}  Ne5 {[%clk 0:00:17]} 49. Bb5 {[%clk 0:00:11]}  Ng4 {[%clk 0:00:17]} 50. Kg1 {[%clk 0:00:10]}  Nf6 {[%clk 0:00:16]} 51. Bc4 {[%clk 0:00:10]}  Ne4 {[%clk 0:00:16]} 52. Qh2 {[%clk 0:00:07]}  Qxh2+ {[%clk 0:00:11]} 53. Kxh2 {[%clk 0:00:08]}  Nd2 {[%clk 0:00:11]} 54. Rc1 {[%clk 0:00:08]}  f4 {[%clk 0:00:11]} 55. Rc2 {[%clk 0:00:07]}  Nxc4 {[%clk 0:00:11]} 56. Rxc4 {[%clk 0:00:08]}  Rf5 {[%clk 0:00:11]} 57. Kh3 {[%clk 0:00:08]}  f3 {[%clk 0:00:12]} 58. gxf3 {[%clk 0:00:08]}  Rxf3+ {[%clk 0:00:12]} 59. Kxh4 {[%clk 0:00:09]}  Rc3 {[%clk 0:00:13]} 60. Rxc5 {[%clk 0:00:09]}  Rxc5 {[%clk 0:00:13]} 0-1


[Site "https://www.chess.com"]

[Event "Titled Tuesday Blitz February 14 Early 2023"]
[White "Sadykov, Ramil"]
[Black "Zemlyanskii, Ivan"]
[WhiteFideId "24113590"]
[BlackFideId "24249971"]
[WhiteElo "2345"]
[BlackElo "2300"]
[Result "0-1"]
[Round "06"]
[TimeControl "180+2"]
[Date "2023.02.15"]
[WhiteClock "0:00:05"]
[BlackClock "0:00:50"]

1. e4 {[%clk 0:02:59]}  Nc6 {[%clk 0:02:58]} 2. Nf3 {[%clk 0:02:58]}  d5 {[%clk 0:02:58]} 3. exd5 {[%clk 0:02:55]}  Qxd5 {[%clk 0:02:59]} 4. Nc3 {[%clk 0:02:51]}  Qd6 {[%clk 0:02:55]} 5. d4 {[%clk 0:02:50]}  Nf6 {[%clk 0:02:52]} 6. Nb5 {[%clk 0:02:17]}  Qd8 {[%clk 0:02:47]} 7. Bf4 {[%clk 0:02:02]}  Nd5 {[%clk 0:02:43]} 8. Bg3 {[%clk 0:02:02]}  a6 {[%clk 0:02:40]} 9. Na3 {[%clk 0:01:57]}  e6 {[%clk 0:02:28]} 10. Nc4 {[%clk 0:01:54]}  Be7 {[%clk 0:02:26]} 11. c3 {[%clk 0:01:52]}  O-O {[%clk 0:02:25]} 12. Bd3 {[%clk 0:01:53]}  b5 {[%clk 0:02:25]} 13. Nce5 {[%clk 0:01:51]}  Nxe5 {[%clk 0:02:25]} 14. Nxe5 {[%clk 0:01:41]}  Bb7 {[%clk 0:02:24]} 15. O-O {[%clk 0:01:38]}  c5 {[%clk 0:02:20]} 16. dxc5 {[%clk 0:01:31]}  Bxc5 {[%clk 0:02:16]} 17. Qc2 {[%clk 0:01:23]}  h6 {[%clk 0:02:02]} 18. Rad1 {[%clk 0:01:19]}  Qe7 {[%clk 0:01:40]} 19. a4 {[%clk 0:01:16]}  b4 {[%clk 0:01:29]} 20. c4 {[%clk 0:01:14]}  Nf6 {[%clk 0:01:28]} 21. Bh4 {[%clk 0:01:09]}  Rfd8 {[%clk 0:01:25]} 22. Ng4 {[%clk 0:01:06]}  Bd4 {[%clk 0:01:22]} 23. Bh7+ {[%clk 0:00:57]}  Kh8 {[%clk 0:01:19]} 24. Nxf6 {[%clk 0:00:30]}  Bxf6 {[%clk 0:01:20]} 25. Bxf6 {[%clk 0:00:23]}  Qxf6 {[%clk 0:01:17]} 26. Bd3 {[%clk 0:00:21]}  Rd4 {[%clk 0:01:16]} 27. Be2 {[%clk 0:00:18]}  Qg5 {[%clk 0:01:07]} 28. f3 {[%clk 0:00:13]}  Qe3+ {[%clk 0:00:56]} 29. Rf2 {[%clk 0:00:13]}  Rad8 {[%clk 0:00:50]} 30. Rxd4 {[%clk 0:00:10]}  Rxd4 {[%clk 0:00:51]} 31. Bf1 {[%clk 0:00:05]}  Bc6 {[%clk 0:00:50]} 0-1


[Site "https://www.chess.com"]

[Event "Titled Tuesday Blitz February 14 Early 2023"]
[White "Durarbayli, Vasif"]
[Black "Maksimenko, Viktor"]
[WhiteFideId "13402935"]
[BlackFideId "13710478"]
[WhiteElo "2627"]
[BlackElo "2196"]
[Result "1-0"]
[Round "06"]
[TimeControl "180+2"]
[Date "2023.02.15"]
[WhiteClock "0:00:08"]
[BlackClock "0:00:01"]

1. e4 {[%clk 0:03:00]}  e5 {[%clk 0:02:59]} 2. Nf3 {[%clk 0:03:01]}  Nc6 {[%clk 0:02:59]} 3. d4 {[%clk 0:03:02]}  exd4 {[%clk 0:03:00]} 4. Nxd4 {[%clk 0:03:02]}  Nf6 {[%clk 0:02:59]} 5. Nxc6 {[%clk 0:03:02]}  bxc6 {[%clk 0:02:59]} 6. e5 {[%clk 0:03:03]}  Qe7 {[%clk 0:02:58]} 7. Qe2 {[%clk 0:03:03]}  Nd5 {[%clk 0:02:59]} 8. h4 {[%clk 0:03:03]}  Qe6 {[%clk 0:02:43]} 9. Nd2 {[%clk 0:03:01]}  d6 {[%clk 0:02:41]} 10. exd6 {[%clk 0:03:01]}  Bxd6 {[%clk 0:02:38]} 11. Nc4 {[%clk 0:03:01]}  Bb4+ {[%clk 0:02:25]} 12. Bd2 {[%clk 0:02:51]}  O-O {[%clk 0:02:24]} 13. O-O-O {[%clk 0:02:35]}  Rb8 {[%clk 0:02:17]} 14. Qxe6 {[%clk 0:02:31]}  Bxe6 {[%clk 0:02:16]} 15. Ne5 {[%clk 0:02:27]}  Rb6 {[%clk 0:02:08]} 16. Bc4 {[%clk 0:02:14]}  Bd6 {[%clk 0:02:03]} 17. Rhe1 {[%clk 0:02:05]}  Rfb8 {[%clk 0:01:53]} 18. Bb3 {[%clk 0:02:05]}  Be7 {[%clk 0:01:47]} 19. Bg5 {[%clk 0:01:54]}  Bb4 {[%clk 0:01:11]} 20. Bd2 {[%clk 0:01:52]}  Be7 {[%clk 0:01:08]} 21. Nc4 {[%clk 0:01:51]}  Ra6 {[%clk 0:01:04]} 22. Bg5 {[%clk 0:01:44]}  Bb4 {[%clk 0:01:01]} 23. Re4 {[%clk 0:01:10]}  h6 {[%clk 0:00:57]} 24. Bd2 {[%clk 0:01:10]}  Bf8 {[%clk 0:00:54]} 25. Rxe6 {[%clk 0:00:57]}  fxe6 {[%clk 0:00:54]} 26. Re1 {[%clk 0:00:57]}  c5 {[%clk 0:00:44]} 27. Kb1 {[%clk 0:00:56]}  Be7 {[%clk 0:00:36]} 28. g3 {[%clk 0:00:56]}  Bf6 {[%clk 0:00:35]} 29. f4 {[%clk 0:00:52]}  Kf7 {[%clk 0:00:35]} 30. h5 {[%clk 0:00:53]}  Re8 {[%clk 0:00:28]} 31. g4 {[%clk 0:00:52]}  Nb6 {[%clk 0:00:24]} 32. g5 {[%clk 0:00:50]}  Nxc4 {[%clk 0:00:22]} 33. Bxc4 {[%clk 0:00:46]}  Rd6 {[%clk 0:00:23]} 34. Bc1 {[%clk 0:00:29]}  Rd4 {[%clk 0:00:17]} 35. g6+ {[%clk 0:00:13]}  Kf8 {[%clk 0:00:15]} 36. Bxe6 {[%clk 0:00:13]}  Red8 {[%clk 0:00:14]} 37. Bg4 {[%clk 0:00:13]}  R4d6 {[%clk 0:00:09]} 38. c3 {[%clk 0:00:12]}  Rb6 {[%clk 0:00:08]} 39. Kc2 {[%clk 0:00:12]}  Re8 {[%clk 0:00:08]} 40. Rd1 {[%clk 0:00:11]}  Rd6 {[%clk 0:00:08]} 41. Rf1 {[%clk 0:00:11]}  Rb8 {[%clk 0:00:06]} 42. Be3 {[%clk 0:00:08]}  Rb5 {[%clk 0:00:02]} 43. Be2 {[%clk 0:00:07]}  Ra5 {[%clk 0:00:02]} 44. a3 {[%clk 0:00:07]}  Re6 {[%clk 0:00:02]} 45. Rf3 {[%clk 0:00:08]}  Kg8 {[%clk 0:00:01]} 46. Bc4 {[%clk 0:00:08]}  c6 {[%clk 0:00:01]} 1-0


[Site "https://www.chess.com"]